bitfinex/quotes_SOLUSD_20260120
["timestamp","ask_amount","ask_price","bid_price","bid_amount"]
[1768929126538,6.85412606,127.56,127.52,21.40707075]
[1768929126837,6.85412606,127.57,127.53,4.22707075]
[1768929127215,2.66156647,127.56,127.53,4.22707075]
[1768929127828,6.85412606,127.56,127.53,4.22707075]
[1768929128337,6.85412606,127.56,127.52,24.06863722]
[1768929128515,6.85412606,127.55,127.52,21.40707075]
[1768929128716,4.19255959,127.55,127.52,21.40707075]
[1768929129332,4.19255959,127.55,127.52,17.18]
[1768929129529,6.85412606,127.53,127.5,4.22707075]
[1768929129863,6.85412606,127.53,127.5,21.40707075]
[1768929130022,6.85412606,127.53,127.5,17.18]
[1768929131051,6.85412606,127.52,127.5,17.18]
[1768929131270,2.66156647,127.53,127.5,17.18]
[1768929131777,2.66156647,127.52,127.5,17.18]
[1768929134267,6.85412606,127.52,127.48,12.07140346]
[1768929134570,2.66156647,127.51,127.48,21.40707075]
[1768929135247,6.85412606,127.52,127.48,29.2513081]
[1768929135448,6.85412606,127.52,127.49,4.39017714]
[1768929135745,22.26221218,127.55,127.5,4.39017714]
[1768929135746,4.34111755,127.55,127.5,4.39017714]
[1768929135966,7.00268402,127.55,127.51,4.39017714]
[1768929136769,2.66156647,127.54,127.51,4.39017714]
[1768929136944,2.66156647,127.53,127.5,4.39017714]
[1768929137144,2.66156647,127.53,127.49,4.39017714]
[1768929137145,2.66156647,127.52,127.49,4.39017714]
[1768929137966,2.66156647,127.51,127.48,21.57017714]
[1768929138366,2.66156647,127.51,127.49,4.39017714]
[1768929139255,2.66156647,127.54,127.5,4.39017714]
[1768929139457,2.66156647,127.54,127.51,4.39017714]
[1768929140368,2.66156647,127.52,127.49,4.39017714]
[1768929140872,4.34111755,127.53,127.49,12.2339059]
[1768929141085,7.00268402,127.53,127.49,12.2339059]
[1768929141443,2.66156647,127.52,127.49,12.2339059]
[1768929142467,2.66156647,127.52,127.49,4.39017714]
[1768929142674,2.66156647,127.51,127.49,4.39017714]
[1768929143168,7.00268402,127.52,127.49,4.39017714]
[1768929143665,7.00268402,127.52,127.49,12.23390495]
[1768929144676,7.00268402,127.52,127.49,4.39017714]
[1768929144967,7.00268402,127.51,127.48,17.18]
[1768929145269,2.66156647,127.51,127.48,29.41421812]
[1768929147063,7.00268402,127.52,127.48,29.41421812]
[1768929147265,7.00268402,127.52,127.48,32.07578459]
[1768929147769,2.66156647,127.53,127.49,4.39017714]
[1768929147955,7.00268402,127.53,127.49,4.39017714]
[1768929148155,7.00268402,127.53,127.49,7.05174361]
[1768929149174,7.00268402,127.53,127.49,4.39017714]
[1768929149561,7.00268402,127.53,127.49,12.23384811]
[1768929152572,2.66156647,127.52,127.49,12.23384811]
[1768929152885,7.00268402,127.52,127.49,12.23384811]
[1768929154889,7.00134045,127.52,127.49,12.23384811]
[1768929156062,7.00134045,127.53,127.5,4.39017714]
[1768929161163,2.6602229,127.51,127.49,4.39017714]
[1768929163471,2.6602229,127.52,127.49,4.39017714]
[1768929163667,2.6602229,127.52,127.5,4.10279901]
[1768929163874,7.00134045,127.53,127.5,4.10279901]
[1768929164172,2.6602229,127.52,127.5,4.10279901]
[1768929166599,2.6602229,127.53,127.5,4.10279901]
[1768929166796,6.84723148,127.53,127.5,4.10279901]
[1768929166995,2.6602229,127.52,127.5,4.10279901]
[1768929167370,6.84723148,127.53,127.5,4.10279901]
[1768929167688,2.6602229,127.53,127.5,4.10279901]
[1768929168363,6.84723148,127.53,127.5,4.10279901]
[1768929172897,4.18700858,127.53,127.5,4.10279901]
[1768929173095,6.84723148,127.55,127.51,4.41827782]
[1768929174111,6.84723148,127.55,127.51,21.59827782]
[1768929174600,2.6602229,127.54,127.51,21.59827782]
[1768929174781,2.6602229,127.53,127.51,21.59827782]
[1768929175099,2.60022291,127.53,127.51,21.59827782]
[1768929176995,6.84723148,127.52,127.49,4.41827782]
[1768929177185,2.6602229,127.51,127.48,12.26233361]
[1768929177383,2.6602229,127.51,127.49,4.41827782]
[1768929179000,2.6602229,127.51,127.49,12.26196158]
[1768929179477,4.18700858,127.53,127.49,12.26196158]
[1768929179677,2.6602229,127.51,127.49,12.26196158]
[1768929179877,2.60022291,127.51,127.49,12.26196158]
[1768929180203,2.60022291,127.51,127.49,4.41827782]
[1768929180399,2.6602229,127.5,127.49,4.41827782]
[1768929180703,2.6602229,127.51,127.49,4.41827782]
[1768929180896,6.84723148,127.51,127.48,4.41827782]
[1768929181095,2.6602229,127.51,127.48,4.41827782]
[1768929181892,2.6602229,127.5,127.48,4.41827782]
[1768929182204,2.6602229,127.52,127.49,4.41827782]
[1768929182509,2.6602229,127.51,127.48,7.84429351]
[1768929182708,2.6602229,127.51,127.47,2.6602229]
[1768929182908,6.84723148,127.52,127.48,10.50453294]
[1768929183089,2.6602229,127.54,127.49,2.6602229]
[1768929183404,6.84723148,127.55,127.51,2.6602229]
[1768929183981,4.18700858,127.54,127.51,2.6602229]
[1768929184310,4.18700858,127.54,127.51,4.41827782]
[1768929185505,6.84723148,127.54,127.51,12.26076619]
[1768929185696,4.18700858,127.54,127.51,12.26076619]
[1768929185895,6.84723148,127.54,127.51,12.26076619]
[1768929186095,0.1,127.59,127.54,4.41827782]
[1768929186301,0.1,127.59,127.56,4.41827782]
[1768929186488,4.18700858,127.57,127.54,7.07850072]
[1768929186694,6.84723148,127.57,127.54,4.41827782]
[1768929186892,4.18700858,127.57,127.54,4.41827782]
[1768929187499,4.18700858,127.57,127.54,12.25888579]
[1768929187709,6.84723148,127.58,127.54,14.91910869]
[1768929188107,4.18700858,127.57,127.53,14.91957435]
[1768929188317,6.84723148,127.57,127.53,14.91957435]
[1768929189304,6.84723148,127.57,127.54,4.41827782]
[1768929189617,4.18700858,127.57,127.54,12.25875779]
[1768929189991,6.84723148,127.57,127.53,14.91949667]
[1768929190393,6.84723148,127.57,127.53,14.91947246]
[1768929190891,4.18700858,127.57,127.54,4.41827782]
[1768929191087,6.84723148,127.58,127.54,14.9191116]
[1768929191294,4.18700858,127.57,127.54,12.2588887]
[1768929191996,4.18700858,127.58,127.55,4.41827782]
[1768929192200,6.84723148,127.58,127.55,4.41827782]
[1768929192415,6.84723148,127.58,127.54,10.50083378]
[1768929192592,4.18700858,127.57,127.54,14.9191116]
[1768929194996,6.72728274,127.58,127.54,14.9191116]
[1768929195612,0.1,127.61,127.58,4.37771341]
[1768929195917,0.1,127.61,127.59,2.6602229]
[1768929197096,0.1,127.61,127.59,7.03793631]
[1768929198417,0.1,127.61,127.6,2.6602229]
[1768929199318,4.16705984,127.61,127.57,12.21607985]
[1768929199503,4.06705984,127.6,127.57,14.8767639]
[1768929199703,4.06705984,127.6,127.58,2.6602229]
[1768929200317,4.16705984,127.61,127.59,2.6602229]
[1768929201019,4.16705984,127.61,127.58,2.6602229]
[1768929202123,4.06705984,127.58,127.55,15.4]
[1768929202325,6.72728274,127.58,127.54,14.87831919]
[1768929202828,6.72728274,127.58,127.54,7.03793631]
[1768929204423,6.72728274,127.58,127.54,4.37771341]
[1768929204624,6.72728274,127.57,127.53,4.37771341]
[1768929204921,6.72728274,127.56,127.52,4.37771341]
[1768929205225,6.72728274,127.54,127.5,4.37771341]
[1768929206905,4.06705984,127.53,127.48,21.55771341]
[1768929207110,4.06705984,127.53,127.49,14.8815946]
[1768929207307,2.6602229,127.55,127.51,4.37771341]
[1768929207512,7.83839678,127.58,127.51,7.03793631]
[1768929207711,6.72728274,127.57,127.53,4.37771341]
[1768929208126,6.72728274,127.56,127.53,4.37771341]
[1768929209426,2.6602229,127.55,127.52,4.37771341]
[1768929210016,6.72728274,127.56,127.52,4.37771341]
[1768929212631,6.72728274,127.56,127.52,12.21947981]
[1768929216422,6.72728274,127.56,127.53,4.37771341]
[1768929217028,6.72591007,127.56,127.53,4.37771341]
[1768929218232,4.06705984,127.58,127.54,4.37771341]
[1768929218533,6.72591007,127.58,127.54,4.37771341]
[1768929219520,4.06705984,127.56,127.53,4.37771341]
[1768929219721,6.72591007,127.56,127.53,4.37771341]
[1768929220528,6.72591007,127.54,127.51,4.37771341]
[1768929220927,2.65885023,127.53,127.51,4.37771341]
[1768929223136,6.72591007,127.54,127.51,4.37771341]
[1768929224527,2.65885023,127.58,127.54,4.16904838]
[1768929224726,4.21783485,127.58,127.55,4.16904838]
[1768929225036,6.87668508,127.58,127.55,4.16904838]
[1768929225634,6.87668508,127.58,127.54,4.11269432]
[1768929225840,4.21783485,127.58,127.54,6.77154455]
[1768929226629,4.20600764,127.57,127.54,4.11269432]
[1768929226829,4.20600764,127.57,127.54,6.77154455]
[1768929227239,4.20600764,127.57,127.53,6.77154455]
[1768929227240,4.20600764,127.56,127.53,6.77154455]
[1768929227545,4.20600764,127.55,127.51,6.77154455]
[1768929227746,6.86485787,127.55,127.51,4.11269432]
[1768929227939,6.86485787,127.55,127.51,6.77154455]
[1768929229222,6.86485787,127.55,127.51,4.11269432]
[1768929231650,2.65885023,127.54,127.51,4.11269432]
[1768929231846,6.86485787,127.55,127.51,6.77154455]
[1768929233249,4.20600764,127.55,127.51,6.77154455]
[1768929233449,4.20600764,127.55,127.53,2.65885023]
[1768929233651,4.20600764,127.56,127.53,6.77154455]
[1768929233849,4.20600764,127.56,127.54,2.65885023]
[1768929234954,4.20600764,127.57,127.54,2.65885023]
[1768929235255,24.04485787,127.59,127.55,4.11269432]
[1768929235556,6.86485787,127.59,127.55,6.77154455]
[1768929236438,4.20600764,127.59,127.55,6.77154455]
[1768929236856,4.20600764,127.58,127.55,6.77154455]
[1768929237739,4.20600764,127.58,127.55,4.11269432]
[1768929237945,6.86485787,127.58,127.55,4.11269432]
[1768929238160,4.20600764,127.58,127.55,4.11269432]
[1768929239864,4.20600764,127.57,127.53,6.77154455]
[1768929240050,6.86485787,127.57,127.53,6.77154455]
[1768929240250,4.20600764,127.56,127.53,4.11269432]
[1768929240961,4.20600764,127.56,127.52,6.77154455]
[1768929241364,4.20600764,127.56,127.53,6.77154455]
[1768929242566,4.20600764,127.56,127.54,2.65885023]
[1768929245158,4.20600764,127.57,127.54,2.65885023]
[1768929245366,4.20600764,127.57,127.55,2.65885023]
[1768929248063,4.20600764,127.59,127.56,6.77154455]
[1768929248245,21.38600764,127.59,127.56,6.77154455]
[1768929248639,21.38600764,127.59,127.56,2.65885023]
[1768929250472,21.38600764,127.59,127.55,6.77154455]
[1768929250673,29.2236156,127.59,127.55,6.77154455]
[1768929250852,31.88246583,127.59,127.55,6.77154455]
[1768929251470,4.20600764,127.58,127.55,6.77154455]
[1768929253575,4.20600764,127.6,127.57,4.11269432]
[1768929253879,4.30600764,127.61,127.58,2.65885023]
[1768929256761,4.30600764,127.61,127.57,6.77154455]
[1768929257975,4.2506389,127.6,127.57,6.77154455]
[1768929258560,4.3506389,127.61,127.59,2.65885023]
[1768929259172,0.1,127.61,127.6,2.65885023]
[1768929259357,0.1,127.61,127.6,7.128108]
[1768929259757,0.1,127.61,127.6,2.65885023]
[1768929259956,0.1,127.61,127.59,7.128108]
[1768929272379,4.2506389,127.6,127.57,4.46925777]
[1768929272685,4.2506389,127.6,127.57,7.128108]
[1768929273382,4.2506389,127.6,127.58,4.46925777]
[1768929273684,4.3506389,127.61,127.58,7.128108]
[1768929273890,0.1,127.61,127.59,7.128108]
[1768929274091,21.1306389,127.62,127.59,7.128108]
[1768929274389,21.1306389,127.62,127.59,4.46925777]
[1768929274575,17.18,127.62,127.58,7.128108]
[1768929274967,17.18,127.62,127.59,4.46925777]
[1768929275162,17.18,127.62,127.59,7.128108]
[1768929276081,21.4306389,127.62,127.59,7.128108]
[1768929277075,4.2506389,127.62,127.59,7.128108]
[1768929277396,4.2506389,127.62,127.6,5.85503781]
[1768929277596,4.2506389,127.62,127.59,7.128108]
[1768929277770,4.2506389,127.62,127.6,5.85541301]
[1768929277970,4.2506389,127.62,127.59,7.128108]
[1768929278182,4.2506389,127.62,127.6,5.85557003]
[1768929278483,4.2506389,127.61,127.58,7.128108]
[1768929278885,4.2506389,127.61,127.58,7.12529832]
[1768929279575,4.2506389,127.61,127.59,4.46925777]
[1768929281204,4.2506389,127.6,127.57,7.12529832]
[1768929281878,4.2506389,127.6,127.58,4.46925777]
[1768929282193,7.83639813,127.61,127.58,4.46925777]
[1768929282394,4.2506389,127.63,127.6,4.46925777]
[1768929282591,4.2506389,127.62,127.59,2.65604055]
[1768929284796,4.2506389,127.62,127.59,6.99173126]
[1768929285197,25.02989139,127.65,127.62,4.36999547]
[1768929285198,0.1,127.65,127.62,4.36999547]
[1768929285389,0.1,127.65,127.64,4.36999547]
[1768929285586,0.1,127.65,127.63,7.02603602]
[1768929285897,0.1,127.65,127.62,4.36999547]
[1768929285898,4.47526628,127.65,127.62,4.36999547]
[1768929286383,4.47526628,127.65,127.62,7.02603602]
[1768929287615,0.1,127.65,127.63,4.36999547]
[1768929289980,4.47526628,127.65,127.62,7.02603602]
[1768929290579,0.1,127.65,127.63,4.36999547]
[1768929291603,0.1,127.65,127.63,7.02603602]
[1768929293107,4.47526628,127.65,127.59,4.36999547]
[1768929293403,4.37526628,127.63,127.6,4.36999547]
[1768929293698,4.37526628,127.64,127.61,4.36999547]
[1768929293881,21.65526628,127.65,127.61,7.02603602]
[1768929295099,4.47526628,127.65,127.61,7.02603602]
[1768929295703,4.37526628,127.64,127.61,7.02603602]
[1768929296482,4.37526628,127.64,127.61,4.36999547]
[1768929297593,7.13130683,127.65,127.61,4.36999547]
[1768929298994,4.37526628,127.64,127.61,4.36999547]
[1768929300405,7.03130683,127.64,127.61,4.36999547]
[1768929300987,4.37526628,127.64,127.61,4.36999547]
[1768929301987,4.37526628,127.64,127.59,10.49364521]
[1768929301988,4.37526628,127.64,127.6,4.36999547]
[1768929302309,4.37526628,127.63,127.6,4.36999547]
[1768929302610,7.03130683,127.63,127.59,4.36999547]
[1768929303180,4.37526628,127.61,127.58,4.36999547]
[1768929304093,4.37526628,127.63,127.58,4.36999547]
[1768929304298,7.03130683,127.62,127.58,4.36999547]
[1768929305003,4.37526628,127.59,127.56,4.36999547]
[1768929305507,4.34600402,127.59,127.56,4.36999547]
[1768929305911,2.65604055,127.6,127.56,4.36999547]
[1768929306085,2.65604055,127.61,127.56,12.20937291]
[1768929307003,2.65604055,127.61,127.56,4.36999547]
[1768929307200,2.65604055,127.6,127.56,4.36999547]
[1768929307493,7.03130683,127.6,127.56,4.36999547]
[1768929309208,4.37526628,127.6,127.57,4.36999547]
[1768929310305,4.37526628,127.6,127.58,2.65604055]
[1768929310486,4.37526628,127.6,127.57,7.02603602]
[1768929311097,4.37526628,127.6,127.57,14.8648438]
[1768929311795,4.37526628,127.6,127.57,12.20880325]
[1768929312311,2.65604055,127.63,127.58,4.36999547]
[1768929312608,2.75604055,127.65,127.61,4.36999547]
[1768929312803,4.37526628,127.64,127.61,4.36999547]
[1768929313010,4.37526628,127.64,127.6,4.36999547]
[1768929313208,4.37526628,127.63,127.59,4.36999547]
[1768929313908,4.37526628,127.62,127.58,4.36999547]
[1768929314116,4.37526628,127.61,127.57,7.02603602]
[1768929314413,7.03130683,127.62,127.58,4.36999547]
[1768929314616,4.37526628,127.61,127.58,4.36999547]
[1768929314793,2.65604055,127.62,127.58,4.36999547]
[1768929314794,4.37526628,127.62,127.58,4.36999547]
[1768929315000,4.37526628,127.62,127.58,7.02603602]
[1768929315210,4.37526628,127.62,127.59,2.65604055]
[1768929315608,4.37526628,127.62,127.59,6.77456538]
[1768929315813,4.31348672,127.63,127.6,4.11852483]
[1768929316123,4.31348672,127.63,127.6,6.77456538]
[1768929316289,4.41348672,127.65,127.61,6.77456538]
[1768929316494,4.41348672,127.65,127.62,6.77456538]
[1768929317420,4.41348672,127.65,127.61,6.77456538]
[1768929318314,7.06952727,127.65,127.61,6.77456538]
[1768929319296,4.41348672,127.65,127.61,2.65604055]
[1768929319615,0.1,127.65,127.64,4.11852483]
[1768929319822,0.1,127.65,127.64,6.77456538]
[1768929320112,4.31348672,127.67,127.64,6.77456538]
[1768929320318,12.14561824,127.68,127.65,2.65604055]
[1768929320611,4.31348672,127.67,127.66,2.65604055]
[1768929320815,4.31348672,127.67,127.64,4.11852483]
[1768929321212,4.31348672,127.68,127.65,6.77456538]
[1768929321518,4.41348672,127.69,127.66,4.11852483]
[1768929321720,0.1,127.69,127.67,4.11852483]
[1768929322093,0.1,127.69,127.67,6.77456538]
[1768929322394,25.1099765,127.72,127.68,4.11852483]
[1768929322395,7.06952727,127.72,127.68,4.11852483]
[1768929322598,7.06952727,127.72,127.65,30.07474853]
[1768929322599,0.1,127.72,127.7,6.77456538]
[1768929322809,7.06952727,127.75,127.7,2.65604055]
[1768929323024,4.41348672,127.75,127.71,2.65604055]
[1768929323330,7.06952727,127.75,127.71,2.65604055]
[1768929323622,7.06952727,127.75,127.73,2.65604055]
[1768929323623,0.1,127.75,127.73,2.65604055]
[1768929323998,0.1,127.75,127.72,2.65604055]
[1768929324930,4.31348672,127.74,127.7,6.77456538]
[1768929325224,4.31348672,127.74,127.71,2.65604055]
[1768929325404,4.31348672,127.74,127.7,6.77456538]
[1768929325796,4.31348672,127.7,127.65,4.11852483]
[1768929325998,4.31348672,127.66,127.62,4.11852483]
[1768929326215,6.96952727,127.66,127.62,6.77456538]
[1768929326915,2.65604055,127.65,127.62,4.11852483]
[1768929328114,6.96952727,127.65,127.61,4.11852483]
[1768929328424,2.65604055,127.64,127.61,4.11852483]
[1768929329329,2.65604055,127.63,127.59,4.11852483]
[1768929329623,2.65604055,127.62,127.59,4.11852483]
[1768929330213,6.96952727,127.62,127.58,4.11852483]
[1768929330421,6.96952727,127.6,127.56,4.11852483]
[1768929331314,6.96952727,127.6,127.56,11.95788429]
[1768929331637,4.31348672,127.61,127.57,4.11852483]
[1768929331799,6.96952727,127.61,127.57,4.11852483]
[1768929333311,2.65604055,127.64,127.59,4.11852483]
[1768929333513,2.65604055,127.64,127.6,4.11852483]
[1768929333713,2.65604055,127.65,127.61,4.11852483]
[1768929334101,4.31348672,127.65,127.61,4.11852483]
[1768929334421,6.96952727,127.65,127.61,4.11852483]
[1768929334818,2.65604055,127.65,127.61,4.11852483]
[1768929335121,6.63725983,127.65,127.61,4.11852483]
[1768929335525,10.95074655,127.65,127.61,4.11852483]
[1768929336806,10.95074655,127.64,127.59,18.59313129]
[1768929337012,48.72213196,127.68,127.56,12.54064165]
[1768929337013,10.95074655,127.61,127.57,4.11852483]
[1768929337222,4.31348672,127.6,127.56,7.83919775]
[1768929337552,10.95074655,127.6,127.56,11.95772258]
[1768929337908,6.63725983,127.59,127.56,4.11852483]
[1768929338234,6.57732156,127.59,127.56,4.11852483]
[1768929339117,6.63725983,127.58,127.56,4.11852483]
[1768929340338,6.63725983,127.57,127.54,4.11852483]
[1768929340509,6.63725983,127.58,127.55,4.11852483]
[1768929341033,6.64466333,127.59,127.56,4.11852483]
[1768929341210,6.64466333,127.62,127.57,4.11852483]
[1768929341530,10.95815005,127.63,127.58,10.76318816]
[1768929341714,10.95815005,127.63,127.59,4.11852483]
[1768929341914,6.64466333,127.63,127.59,4.11852483]
[1768929342122,10.95815005,127.64,127.59,4.11852483]
[1768929342533,10.95815005,127.64,127.59,11.9561107]
[1768929342734,6.64466333,127.63,127.59,11.9561107]
[1768929345442,6.64466333,127.63,127.6,4.17126714]
[1768929346129,6.64466333,127.62,127.58,4.17126714]
[1768929346514,6.64466333,127.61,127.58,4.17126714]
[1768929347329,10.76023956,127.62,127.58,4.17126714]
[1768929347527,10.76023956,127.61,127.56,18.65515228]
[1768929347717,10.76023956,127.61,127.57,12.01001135]
[1768929348323,10.76023956,127.61,127.57,4.17126714]
[1768929350441,6.64466333,127.63,127.58,4.17126714]
[1768929350738,6.64466333,127.68,127.61,4.17126714]
[1768929350739,10.76023956,127.65,127.61,4.17126714]
[1768929351037,6.64466333,127.64,127.61,4.17126714]
[1768929351746,10.76023956,127.64,127.59,4.17126714]
[1768929351933,10.76023956,127.63,127.59,4.17126714]
[1768929353539,10.76023956,127.63,127.59,12.00876403]
[1768929353743,10.76023956,127.65,127.61,4.17126714]
[1768929354949,6.77043979,127.65,127.61,4.17126714]
[1768929355643,6.77043979,127.63,127.59,4.17126714]
[1768929355826,6.77043979,127.62,127.58,12.00912246]
[1768929356234,4.11557623,127.62,127.58,14.66398602]
[1768929356730,4.11557623,127.62,127.59,4.17126714]
[1768929357147,6.77043979,127.63,127.59,4.17126714]
[1768929360248,2.65486356,127.61,127.57,4.17126714]
[1768929360428,6.77043979,127.61,127.57,4.17126714]
[1768929360629,6.77043979,127.59,127.56,4.17126714]
[1768929360839,4.11557623,127.6,127.56,4.17126714]
[1768929361130,6.77043979,127.6,127.56,4.17126714]
[1768929361334,2.65486356,127.6,127.57,4.17126714]
[1768929361647,7.83611437,127.62,127.56,7.83935109]
[1768929361648,2.65486356,127.62,127.59,4.17126714]
[1768929361832,21.29557623,127.63,127.59,4.17126714]
[1768929362038,6.77043979,127.62,127.58,4.17126714]
[1768929362440,6.77043979,127.61,127.56,14.66548179]
[1768929362625,6.77043979,127.61,127.57,4.17126714]
[1768929363933,6.7104398,127.61,127.57,6.8261307]
[1768929364332,6.7104398,127.61,127.57,4.17126714]
[1768929366130,2.65486356,127.6,127.57,4.17126714]
[1768929366336,2.65486356,127.58,127.55,4.17126714]
[1768929366652,2.59486357,127.58,127.55,4.17126714]
[1768929368353,2.65486356,127.57,127.55,4.17126714]
[1768929368845,2.65486356,127.58,127.55,4.17126714]
[1768929370836,3.12696356,127.58,127.55,4.17126714]
[1768929371257,4.11557623,127.56,127.53,4.17126714]
[1768929371438,6.77043979,127.56,127.53,4.17126714]
[1768929371835,2.65486356,127.54,127.51,4.17126714]
[1768929372736,6.77043979,127.52,127.47,13.58166422]
[1768929372935,6.77043979,127.52,127.47,7.0261307]
[1768929372936,2.65486356,127.51,127.47,7.0261307]
[1768929373140,2.65486356,127.51,127.48,4.17126714]
[1768929373341,2.59486357,127.51,127.48,4.17126714]
[1768929373541,6.65043981,127.51,127.47,4.37126714]
[1768929374131,4.11557623,127.5,127.47,0.2]
[1768929374455,2.65486356,127.49,127.47,0.2]
[1768929374953,6.65451503,127.49,127.47,0.2]
[1768929376257,10.91102188,127.48,127.46,0.2]
[1768929376555,10.91102188,127.48,127.43,6.85451503]
[1768929376556,10.91102188,127.47,127.43,4.34786834]
[1768929376754,4.25650685,127.53,127.46,4.14786834]
[1768929377059,10.91102188,127.52,127.47,10.80238337]
[1768929377236,6.65451503,127.52,127.47,10.80238337]
[1768929377443,10.91102188,127.51,127.47,10.80238337]
[1768929377741,6.65451503,127.5,127.47,4.14786834]
[1768929378350,10.91102188,127.5,127.46,6.65451503]
[1768929378554,10.91102188,127.49,127.45,4.14786834]
[1768929380750,6.65451503,127.49,127.46,4.14786834]
[1768929380948,10.91102188,127.49,127.45,4.14786834]
[1768929381260,10.91102188,127.47,127.43,11.00238337]
[1768929381464,10.85102189,127.47,127.43,11.00238337]
[1768929381638,6.65451503,127.47,127.44,4.14786834]
[1768929381834,6.65451503,127.46,127.43,4.34786834]
[1768929382064,6.65451503,127.46,127.43,0.2]
[1768929382263,17.18,127.5,127.43,0.2]
[1768929382264,6.65451503,127.45,127.43,0.2]
[1768929382946,6.65451503,127.44,127.4,10.98754667]
[1768929383143,6.65451503,127.44,127.41,4.14786834]
[1768929383349,6.65451503,127.45,127.41,4.14786834]
[1768929383552,10.91102188,127.45,127.41,4.14786834]
[1768929384359,27.45744096,127.47,127.4,0.1851633]
[1768929384360,4.25650685,127.44,127.4,0.1851633]
[1768929384656,10.91102188,127.44,127.4,4.33303164]
[1768929385258,6.65451503,127.44,127.41,4.14786834]
[1768929385460,4.25650685,127.45,127.41,10.80238337]
[1768929385766,10.91102188,127.46,127.42,10.80238337]
[1768929385973,6.65451503,127.47,127.43,4.14786834]
[1768929386271,10.91102188,127.48,127.44,6.65451503]
[1768929386967,6.65451503,127.47,127.43,10.80238337]
[1768929387270,10.91102188,127.46,127.42,10.80238337]
[1768929387668,4.25650685,127.46,127.42,10.80238337]
[1768929388080,6.65451503,127.48,127.45,4.14786834]
[1768929388368,10.91102188,127.5,127.46,10.80238337]
[1768929388542,18.75437009,127.5,127.46,10.80238337]
[1768929388742,6.65451503,127.49,127.46,4.14786834]
[1768929388946,18.75437009,127.5,127.46,4.14786834]
[1768929391071,6.65451503,127.49,127.46,4.14786834]
[1768929391269,10.91102188,127.49,127.46,4.14786834]
[1768929392059,6.65451503,127.49,127.46,4.14786834]
[1768929392354,4.25650685,127.48,127.41,4.14786834]
[1768929392576,4.25650685,127.47,127.43,4.14786834]
[1768929392874,10.91102188,127.47,127.43,10.80238337]
[1768929393076,6.65451503,127.47,127.44,4.14786834]
[1768929393272,7.12661503,127.49,127.46,4.14786834]
[1768929393572,7.12661503,127.49,127.46,10.80238337]
[1768929393573,0.4721,127.49,127.46,10.80238337]
[1768929393866,0.4721,127.49,127.46,4.14786834]
[1768929394071,8.31593248,127.49,127.46,4.14786834]
[1768929394462,14.97044751,127.49,127.46,4.14786834]
[1768929394975,6.65451503,127.47,127.44,4.14786834]
[1768929395760,10.91102188,127.45,127.41,4.14786834]
[1768929395966,6.65451503,127.44,127.41,4.14786834]
[1768929396858,6.65451503,127.43,127.4,0.1851633]
[1768929397160,6.59451504,127.43,127.4,4.33303164]
[1768929397565,14.44229045,127.43,127.4,4.33303164]
[1768929397779,10.91102188,127.44,127.4,4.33303164]
[1768929398151,18.75794726,127.44,127.4,4.33303164]
[1768929398558,18.75794726,127.44,127.4,10.98754667]
[1768929398760,10.91102188,127.44,127.4,10.98754667]
[1768929399072,18.75789678,127.44,127.4,10.98754667]
[1768929399673,18.75789678,127.44,127.4,4.33303164]
[1768929400775,10.91102188,127.44,127.4,4.33303164]
[1768929400955,10.91559399,127.44,127.4,4.33303164]
[1768929402155,18.76248403,127.44,127.4,4.33303164]
[1768929402871,10.91559399,127.43,127.4,0.1851633]
[1768929403168,10.91559399,127.42,127.4,0.1851633]
[1768929403371,10.91559399,127.43,127.4,0.1851633]
[1768929403971,6.65908714,127.43,127.4,4.61937405]
[1768929404166,6.65908714,127.44,127.41,4.43421075]
[1768929404373,18.72731584,127.45,127.41,4.43421075]
[1768929406361,14.50532238,127.45,127.41,6.65908714]
[1768929406564,14.50532238,127.45,127.42,4.09439952]
[1768929406872,18.82233193,127.45,127.42,4.09439952]
[1768929407178,18.82233193,127.45,127.41,4.09439952]
[1768929407479,6.65908714,127.44,127.41,4.09439952]
[1768929408578,12.16404707,127.44,127.4,4.27956282]
[1768929408778,18.82313421,127.44,127.4,4.27956282]
[1768929409191,10.97609669,127.44,127.4,4.27956282]
[1768929409367,10.97609669,127.44,127.41,4.09439952]
[1768929409764,6.65908714,127.44,127.41,4.09439952]
[1768929410688,18.82259631,127.45,127.41,4.09439952]
[1768929411184,4.31700955,127.45,127.41,4.09439952]
[1768929411487,6.65908714,127.45,127.41,4.09439952]
[1768929412070,10.97609669,127.46,127.42,4.09439952]
[1768929412273,4.31700955,127.46,127.42,4.09439952]
[1768929412471,17.2,127.49,127.41,4.09439952]
[1768929412472,4.31700955,127.44,127.41,4.09439952]
[1768929412778,10.97609669,127.46,127.42,4.09439952]
[1768929413488,10.97609669,127.45,127.42,4.09439952]
[1768929413986,6.65908714,127.45,127.42,4.09439952]
[1768929415991,10.97609669,127.44,127.41,4.09439952]
[1768929418571,6.65908714,127.43,127.4,4.27956282]
[1768929418800,12.16394417,127.44,127.41,4.09439952]
[1768929418801,10.97609669,127.44,127.41,4.09439952]
[1768929418978,4.31700955,127.44,127.41,4.09439952]
[1768929420275,10.97609669,127.44,127.4,4.27956282]